lending/lending_fUSD_20240207
["ID","MTS","AMOUNT","RATE_DAILY","PERIOD"]
[313438272,1707347473417,-156.79537667,0.00049589,61]
[313438273,1707347473427,-508.60004183,0.00049589,61]
[313438274,1707347473437,-500.0,0.00049589,61]
[313438275,1707347473447,-500.0,0.00049589,61]
[313438276,1707347473457,-500.0,0.00049589,61]
[313438277,1707347473467,-500.0,0.00049589,61]
[313438278,1707347473477,-1030.92,0.00049589,61]
[313438279,1707347473486,-500.0,0.00049589,61]
[313438280,1707347473495,-506.5,0.00049589,61]
[313438281,1707347473505,-500.0,0.00049589,61]
[313438282,1707347473514,-500.0,0.00049589,61]
[313438283,1707347473524,-504.52,0.00049589,61]
[313438284,1707347473533,-837.36,0.00049589,61]
[313438285,1707347473543,-500.0,0.00049589,61]
[313438286,1707347473553,-823.28,0.00049589,61]
[313438287,1707347473562,-1199.97,0.00049589,61]
[313438288,1707347473571,-500.0,0.00049589,61]
[313438289,1707347473580,-500.0,0.00049589,61]
[313438290,1707347473590,-1675.14,0.00049589,61]
[313438291,1707347473599,-690.49,0.00049589,61]
[313438292,1707347473609,-500.0,0.00049589,61]
[313438293,1707347473619,-500.0,0.00049589,61]
[313438294,1707347473628,-500.0,0.00049589,61]
[313438295,1707347473638,-500.0,0.00049589,61]
[313438296,1707347473647,-868.52,0.00049589,61]
[313438297,1707347473657,-1013.87,0.00049589,31]
[313438298,1707347473666,-500.0,0.00049589,61]
[313438299,1707347473676,-647.85444981,0.00049589,61]
[313438300,1707347473685,-500.0,0.00049589,61]
[313438301,1707347473695,-532.3,0.00049589,61]
[313438302,1707347473704,-1000.0,0.00049589,7]
[313438303,1707347473713,-878.73,0.00049589,61]
[313438304,1707347473722,-930.05,0.00049589,61]
[313438305,1707347473731,-681.7,0.00049589,61]
[313438306,1707347473740,-500.0,0.00049589,61]
[313438307,1707347473750,-500.0,0.00049589,61]
[313438308,1707347473759,-500.0,0.00049589,61]
[313438309,1707347473768,-500.0,0.00049589,61]
[313438310,1707347473778,-500.0,0.00049589,61]
[313438311,1707347473788,-500.0,0.00049589,61]
[313438312,1707347473797,-767.16,0.00049589,61]
[313438313,1707347473807,-600.25,0.00049589,61]
[313438314,1707347473817,-500.0,0.00049589,61]
[313438315,1707347473826,-533.21,0.00049589,61]
[313438316,1707347473835,-500.0,0.00049589,61]
[313438317,1707347473845,-500.0,0.00049589,61]
[313438318,1707347473855,-926.27,0.00049589,61]
[313438319,1707347473865,-500.0,0.00049589,61]
[313438320,1707347473874,-246.84395155,0.00049589,61]
[313438321,1707347473884,-2608.45,0.00049589,31]
[313438322,1707347473893,-500.0,0.00049589,61]
[313438323,1707347473902,-500.0,0.00049589,61]
[313438324,1707347473912,-500.06949864,0.00049589,61]
[313438325,1707347473921,-500.0,0.00049589,61]
[313438326,1707347473931,-1732.8,0.00049589,61]
[313438327,1707347473941,-500.0,0.00049589,61]
[313438328,1707347473950,-500.0,0.00049589,61]
[313438329,1707347473959,-1769.21,0.00049589,61]
[313438330,1707347473968,-500.0,0.00049589,61]
[313438331,1707347473979,-1421.25,0.00049589,61]
[313438332,1707347473988,-500.0,0.00049589,61]
[313438333,1707347473998,-500.0,0.00049589,61]
[313438334,1707347474012,-500.0,0.00049589,61]
[313438335,1707347474021,-615.44,0.00049589,61]
[313438336,1707347474031,-500.0,0.00049589,61]
[313438337,1707347474040,-500.0,0.00049589,61]
[313438338,1707347474050,-695.44,0.00049589,61]
[313438339,1707347474060,-500.0,0.00049589,61]
[313438340,1707347474069,-500.0,0.00049589,61]
[313438341,1707347474079,-500.0,0.00049589,61]
[313438342,1707347474089,-500.0,0.00049589,61]
[313438343,1707347474100,-500.0,0.00049589,61]
[313438344,1707347474109,-500.0,0.00049589,61]
[313438345,1707347474119,-500.0,0.00049589,61]
[313438346,1707347474128,-500.0,0.00049589,61]
[313438347,1707347474138,-500.0,0.00049589,61]
[313438348,1707347474147,-645.9,0.00049589,7]
[313438349,1707347474156,-659.38,0.00049589,61]
[313438350,1707347474166,-500.0,0.00049589,61]
[313438351,1707347474176,-1777.05,0.00049589,61]
[313438352,1707347474186,-500.0,0.00049589,61]
[313438353,1707347474195,-500.0,0.00049589,61]
[313438354,1707347474205,-500.0,0.00049589,61]
[313438355,1707347474214,-539.01,0.00049589,61]
[313438356,1707347474224,-1544.48,0.00049589,61]
[313438357,1707347474233,-500.0,0.00049589,61]
[313438358,1707347474242,-1435.04,0.00049589,61]
[313438359,1707347474251,-500.0,0.00049589,61]
[313438360,1707347474261,-531.72948701,0.00049589,61]
[313438361,1707347474270,-539.7,0.00049589,61]
[313438362,1707347474279,-645.69,0.00049589,61]
[313438363,1707347474288,-492.29058314,0.00049589,61]
[313438364,1707347474298,-500.0,0.00049589,61]
[313438365,1707347474307,-709.73,0.00049589,61]
[313438366,1707347474317,-500.0,0.00049589,61]
[313438367,1707347474327,-500.0,0.00049589,61]
[313438368,1707347474337,-500.0,0.00049589,61]
[313438369,1707347474347,-500.0,0.00049589,61]
[313438370,1707347474358,-740.83,0.00049589,2]
[313438371,1707347474367,-1656.01,0.00049589,61]
[313438372,1707347474377,-1199.69,0.00049589,61]
[313438373,1707347474387,-1492.44,0.00049589,61]
[313438374,1707347474397,-500.0,0.00049589,61]
[313438375,1707347474407,-788.21,0.00049589,61]
[313438376,1707347474416,-500.0,0.00049589,61]
[313438377,1707347474426,-1265.23,0.00049589,61]
[313438378,1707347474643,-500.0,0.00049589,61]
[313438379,1707347474654,-1083.11,0.00049589,61]
[313438380,1707347474663,-500.0,0.00049589,61]
[313438381,1707347474673,-687.22,0.00049589,61]
[313438382,1707347474682,-500.0,0.00049589,61]
[313438383,1707347474692,-500.0,0.00049589,61]
[313438384,1707347474701,-500.0,0.00049589,61]
[313438385,1707347474710,-500.0,0.00049589,61]
[313438386,1707347474719,-500.0,0.00049589,61]
[313438387,1707347474729,-517.85,0.00049589,61]
[313438388,1707347474738,-1979.44,0.00049589,61]
[313438389,1707347474748,-329.05684906,0.00049589,61]
[313438390,1707347474757,-779.42,0.00049589,61]
[313438391,1707347474767,-536.91,0.00049589,61]
[313438392,1707347474776,-1371.35,0.00049589,31]
[313438393,1707347474785,-678.28,0.00049589,61]
[313438394,1707347474795,-500.0,0.00049589,61]
[313438395,1707347474805,-553.4,0.00049589,61]
[313438396,1707347474814,-500.0,0.00049589,61]
[313438397,1707347474823,-726.06,0.00049589,61]
[313438398,1707347474833,-563.43,0.00049589,61]
[313438399,1707347474842,-1615.47,0.00049589,61]
[313438400,1707347474851,-1043.14,0.00049589,61]
[313438401,1707347474861,-500.0,0.00049589,61]
[313438402,1707347474870,-500.0,0.00049589,61]
[313438403,1707347474879,-510.29,0.00049589,61]
[313438404,1707347474888,-1175.97,0.00049589,61]
[313438405,1707347474898,-500.0,0.00049589,61]
[313438406,1707347474907,-150.0,0.00049589,61]
[313438407,1707347474916,-500.0,0.00049589,61]
[313438408,1707347474925,-500.0,0.00049589,61]
[313438409,1707347474934,-500.0,0.00049589,61]
[313438410,1707347474943,-500.0,0.00049589,61]
[313438411,1707347474954,-1193.33,0.00049589,61]
[313438412,1707347474963,-500.0,0.00049589,61]
[313438413,1707347474972,-157.43835703,0.00049589,61]
[313438414,1707347474981,-500.0,0.00049589,61]
[313438415,1707347474991,-500.0,0.00049589,61]
[313438416,1707347475000,-500.0,0.00049589,61]
[313438417,1707347475012,-500.0,0.00049589,61]
[313438418,1707347475021,-874.9,0.00049589,61]
[313438419,1707347475030,-770.71,0.00049589,61]
[313438420,1707347475039,-500.0,0.00049589,61]
[313438421,1707347475049,-573.31,0.00049589,61]
[313438422,1707347475059,-500.0,0.00049589,61]
[313438423,1707347475067,-1088.76,0.00049589,61]
[313438424,1707347475077,-1386.24,0.00049589,61]
[313438425,1707347475086,-2593.53,0.00049589,30]
[313438426,1707347475095,-500.0,0.00049589,61]
[313438427,1707347475105,-500.0,0.00049589,61]
[313438428,1707347475115,-500.0,0.00049589,61]
[313438429,1707347475124,-500.0,0.00049589,61]
[313438430,1707347475134,-652.45,0.00049589,61]
[313438431,1707347475144,-500.0,0.00049589,61]
[313438432,1707347475154,-500.0,0.00049589,61]
[313438433,1707347475163,-500.0,0.00049589,61]
[313438434,1707347475173,-500.0,0.00049589,61]
[313438435,1707347475183,-500.0,0.00049589,61]
[313438436,1707347475192,-2700.69,0.00049589,61]
[313438437,1707347475202,-968.52,0.00049589,61]
[313438438,1707347475211,-500.0,0.00049589,61]
[313438439,1707347475221,-742.25,0.00049589,61]
[313438440,1707347475230,-723.52,0.00049589,61]
[313438441,1707347475240,-500.0,0.00049589,61]
[313438442,1707347475250,-1034.49,0.00049589,61]
[313438443,1707347475259,-500.0,0.00049589,61]
[313438444,1707347475268,-500.0,0.00049589,61]
[313438445,1707347475278,-655.03,0.00049589,61]
[313438446,1707347475288,-1012.28,0.00049589,61]
[313438447,1707347475297,-500.0,0.00049589,61]
[313438448,1707347475307,-500.0,0.00049589,61]
[313438449,1707347475316,-3466.62,0.00049589,61]
[313438450,1707347475326,-500.0,0.00049589,61]
[313438451,1707347475577,-810.34,0.00049589,61]
[313438452,1707347475588,-1031.85,0.00049589,61]
[313438453,1707347475597,-1307.63,0.00049589,61]
[313438454,1707347475607,-500.0,0.00049589,61]
[313438455,1707347475617,-596.49,0.00049589,61]
[313438456,1707347475626,-547.91,0.00049589,61]
[313438457,1707347475636,-938.29,0.00049589,61]
[313438458,1707347475645,-500.0,0.00049589,61]
[313438459,1707347475655,-500.0,0.00049589,60]
[313438460,1707347475664,-500.0,0.00049589,61]
[313438461,1707347475673,-500.0,0.00049589,61]
[313438462,1707347475682,-500.0,0.00049589,61]
[313438463,1707347475691,-2318.34,0.00049589,61]
[313438464,1707347475701,-500.0,0.00049589,61]
[313438465,1707347475710,-500.0,0.00049589,61]
[313438466,1707347475719,-500.0,0.00049589,61]
[313438467,1707347475728,-392.91571359,0.00049589,61]
[313438468,1707347475738,-500.0,0.00049589,61]
[313438469,1707347475747,-1379.71,0.00049589,61]
[313438470,1707347475756,-500.0,0.00049589,61]
[313438471,1707347475765,-500.0,0.00049589,61]
[313438472,1707347475774,-500.0,0.00049589,61]
[313438473,1707347475783,-500.0,0.00049589,61]
[313438474,1707347475792,-7090.44,0.00049589,61]
[313438475,1707347475802,-500.0,0.00049589,61]
[313438476,1707347475811,-500.0,0.00049589,61]
[313438477,1707347475820,-500.0,0.00049589,61]
[313438478,1707347475828,-551.34,0.00049589,61]
[313438479,1707347475838,-999.68,0.00049589,61]
[313438480,1707347475847,-500.0,0.00049589,61]
[313438481,1707347475856,-1026.8,0.00049589,61]
[313438482,1707347475865,-500.0,0.00049589,61]
[313438483,1707347475874,-5027.68,0.00049589,61]
[313438484,1707347475883,-500.0,0.00049589,61]
[313438485,1707347475892,-500.0,0.00049589,61]
[313438486,1707347475901,-650.61,0.00049589,61]
[313438487,1707347475910,-547.55,0.00049589,61]
[313438488,1707347475919,-500.0,0.00049589,61]
[313438489,1707347475928,-489.54911503,0.00049589,61]
[313438490,1707347475937,-500.0,0.00049589,61]
[313438491,1707347475946,-531.32,0.00049589,61]
[313438492,1707347475955,-500.0,0.00049589,61]
[313438493,1707347475964,-1570.26,0.00049589,61]
[313438494,1707347475973,-500.0,0.00049589,61]
[313438495,1707347475982,-10501.63,0.00049589,61]
[313438496,1707347475991,-1592.24,0.00049589,61]
[313438497,1707347476004,-699.2,0.00049589,61]
[313438498,1707347476013,-500.0,0.00049589,61]
[313438499,1707347476022,-500.0,0.00049589,61]
[313438500,1707347476031,-500.0,0.00049589,61]
[313438501,1707347476041,-500.0,0.00049589,61]
[313438502,1707347476050,-1116.6,0.00049589,61]
[313438503,1707347476063,-500.0,0.00049589,61]
[313438504,1707347476072,-750.16,0.00049589,61]
[313438505,1707347476083,-923.63,0.00049589,61]
[313438506,1707347476093,-3906.72,0.00049589,61]
[313438507,1707347476102,-500.0,0.00049589,61]
[313438508,1707347476112,-4016.41,0.00049589,61]
[313438509,1707347476121,-500.0,0.00049589,61]
[313438510,1707347476130,-500.0,0.00049589,61]
[313438511,1707347476140,-6471.24,0.00049589,61]
[313438512,1707347476149,-1549.35,0.00049589,61]
[313438513,1707347476158,-886.29,0.00049589,61]
[313438514,1707347476167,-841.38,0.00049589,61]
[313438515,1707347476177,-500.0,0.00049589,61]
[313438516,1707347476186,-500.0,0.00049589,61]
[313438517,1707347476195,-533.59698927,0.00049589,61]
[313438518,1707347476204,-500.0,0.00049589,61]
[313438519,1707347476214,-1555.84,0.00049589,61]
[313438520,1707347476223,-1152.99,0.00049589,61]
[313438521,1707347476233,-500.0,0.00049589,61]
[313438522,1707347476242,-1548.24,0.00049589,61]
[313438523,1707347476251,-500.0,0.00049589,61]
[313438524,1707347476261,-500.0,0.00049589,61]
[313438525,1707347476271,-500.0,0.00049589,61]
[313438526,1707347476280,-188.90262018,0.00049589,61]
[313438527,1707347476291,-534.97,0.00049589,61]
[313438528,1707347476300,-12781.73,0.00049589,61]
[313438529,1707347476309,-812.43,0.00049589,61]
[313438530,1707347476319,-500.0,0.00049589,5]
[313438531,1707347476328,-3890.54,0.00049589,61]
[313438532,1707347476337,-500.0,0.00049589,61]
[313438533,1707347476347,-1835.07,0.00049589,61]
[313438534,1707347476356,-500.07,0.00049589,61]
[313438535,1707347476365,-500.0,0.00049589,61]
[313438536,1707347476375,-500.0,0.00049589,61]
[313438537,1707347476384,-500.0,0.00049589,61]
[313438538,1707347476394,-317.72092294,0.00049589,61]
[313438539,1707347476403,-1323.04,0.00049589,61]
[313438540,1707347476412,-580.42,0.00049589,61]
[313438541,1707347476422,-500.0,0.00049589,61]
[313438542,1707347476431,-7177.08,0.00049589,61]
[313438543,1707347476441,-500.0,0.00049589,61]
[313438544,1707347476450,-728.56,0.00049589,61]
[313438545,1707347476459,-500.0,0.00049589,61]
[313438546,1707347476468,-500.0,0.00049589,61]
[313438547,1707347476478,-1728.03,0.00049589,61]
[313438548,1707347476487,-633.03,0.00049589,61]
[313438549,1707347476497,-3783.79,0.00049589,61]
[313438550,1707347476506,-500.0,0.00049589,61]
[313438551,1707347476515,-2104.05,0.00049589,5]
[313438552,1707347476525,-500.0,0.00049589,61]
[313438553,1707347476536,-751.21,0.00049589,61]
[313438554,1707347476545,-500.0,0.00049589,61]
[313438555,1707347476555,-1982.88,0.00049589,61]
[313438556,1707347476564,-500.0,0.00049589,61]
[313438557,1707347476573,-500.0,0.00049589,61]
[313438558,1707347476583,-1495.36,0.00049589,61]
[313438559,1707347476591,-4092.19,0.00049589,61]
[313438560,1707347476601,-2548.02,0.00049589,61]
[313438561,1707347476610,-500.0,0.00049589,61]
[313438562,1707347476619,-500.0,0.00049589,61]
[313438563,1707347476629,-13188.12,0.00049589,61]
[313438564,1707347476638,-2658.66,0.00049589,61]
[313438565,1707347476648,-500.0,0.00049589,61]
[313438566,1707347476657,-500.0,0.00049589,61]
[313438567,1707347476666,-1169.7,0.00049589,61]
[313438568,1707347476675,-510.73,0.00049589,61]
[313438569,1707347476685,-500.0,0.00049589,61]
[313438570,1707347476694,-500.0,0.00049589,61]
[313438571,1707347476703,-500.0,0.00049589,61]
[313438572,1707347476712,-819.7,0.00049589,61]
[313438573,1707347476722,-1213.41,0.00049589,61]
[313438574,1707347476731,-500.0,0.00049589,61]
[313438575,1707347476740,-500.0,0.00049589,61]
[313438576,1707347476749,-979.46,0.00049589,61]
[313438577,1707347476758,-400.0,0.00049589,61]
[313438578,1707347476767,-1090.89,0.00049589,61]
[313438579,1707347476777,-500.0,0.00049589,61]
[313438580,1707347476786,-15411.08,0.00049589,61]
[313438581,1707347476795,-10890.57,0.00049589,61]
[313438582,1707347476804,-14146.48,0.00049589,61]
[313438583,1707347476813,-995.52,0.00049589,61]
[313438584,1707347476822,-591.09,0.00049589,61]
[313438585,1707347476831,-500.0,0.00049589,61]
[313438586,1707347476840,-586.96,0.00049589,61]
[313438587,1707347476850,-646.75,0.00049589,61]
[313438588,1707347476858,-587.64,0.00049589,61]
[313438589,1707347476868,-730.49,0.00049589,61]
[313438590,1707347476877,-3319.85,0.00049589,61]
[313438591,1707347476886,-892.51,0.00049589,61]
[313438592,1707347476895,-1138.36,0.00049589,61]
[313438593,1707347476904,-500.0,0.00049589,30]
[313438594,1707347476913,-500.0,0.00049589,61]
[313438595,1707347476922,-755.46,0.00049589,61]
[313438596,1707347476931,-2767.87,0.00049589,61]
[313438597,1707347476940,-782.81,0.00049589,61]
[313438598,1707347476951,-500.0,0.00049589,61]
[313438599,1707347476961,-500.0,0.00049589,61]
[313438600,1707347476970,-3455.92,0.00049589,61]
[313438601,1707347476979,-500.0,0.00049589,61]
[313438602,1707347476988,-6467.05,0.00049589,61]
[313438603,1707347476998,-1017.23,0.00049589,61]
[313438604,1707347477012,-1192.09,0.00049589,61]
[313438605,1707347477021,-500.0,0.00049589,61]
[313438606,1707347477030,-534.39,0.00049589,61]
[313438607,1707347477039,-500.0,0.00049589,61]
[313438608,1707347477050,-500.0,0.00049589,61]
[313438609,1707347477060,-500.0,0.00049589,61]
[313438610,1707347477069,-500.0,0.00049589,61]
[313438611,1707347477078,-500.0,0.00049589,61]
[313438612,1707347477088,-500.0,0.00049589,61]
[313438613,1707347477098,-500.0,0.00049589,61]
[313438614,1707347477107,-4434.79,0.00049589,61]
[313438615,1707347477116,-500.0,0.00049589,61]
[313438616,1707347477126,-500.0,0.00049589,61]
[313438617,1707347477135,-500.0,0.00049589,61]
[313438618,1707347477144,-1408.58,0.00049589,61]
[313438619,1707347477153,-2683.22,0.00049589,61]
[313438620,1707347477163,-951.82,0.00049589,61]
[313438621,1707347477172,-500.0,0.00049589,61]
[313438622,1707347477181,-704.19,0.00049589,61]
[313438623,1707347477190,-500.0,0.00049589,61]
[313438624,1707347477200,-500.0,0.00049589,61]
[313438625,1707347477209,-500.0,0.00049589,61]
[313438626,1707347477218,-551.99,0.00049589,61]
[313438627,1707347477228,-1452.28,0.00049589,61]
[313438628,1707347477237,-1301.3,0.00049589,61]
[313438629,1707347477246,-500.0,0.00049589,61]
[313438630,1707347477256,-775.57,0.00049589,61]
[313438631,1707347477265,-5327.22,0.00049589,61]
[313438632,1707347477274,-2638.6,0.00049589,61]
[313438633,1707347477284,-1386.03,0.00049589,61]
[313438634,1707347477293,-500.0,0.00049589,61]
[313438635,1707347477302,-500.0,0.00049589,61]
[313438636,1707347477311,-500.0,0.00049589,61]
[313438637,1707347477321,-197.32,0.00049589,61]
[313438638,1707347477330,-500.0,0.00049589,61]
[313438639,1707347477339,-1044.99,0.00049589,61]
[313438640,1707347477349,-1334.41,0.00049589,61]
[313438641,1707347477359,-965.51,0.00049589,61]
[313438642,1707347477368,-500.0,0.00049589,61]
[313438643,1707347477378,-9060.5,0.00049589,61]
[313438644,1707347477398,-500.0,0.00049589,61]
[313438645,1707347477409,-500.0,0.00049589,61]
[313438646,1707347477419,-439.94485981,0.00049589,61]
[313438647,1707347477429,-500.0,0.00049589,61]
[313438648,1707347477439,-1645.79,0.00049589,61]
[313438649,1707347477449,-571.07925384,0.00049589,61]
[313438650,1707347477459,-500.0,0.00049589,61]
[313438651,1707347477468,-500.0,0.00049589,61]
[313438652,1707347477478,-500.0,0.00049589,61]
[313438653,1707347477487,-1212.78,0.00049589,61]
[313438654,1707347477498,-1000.0,0.00049589,120]
[313438655,1707347477507,-500.0,0.00049589,61]
[313438656,1707347477517,-500.0,0.00049589,61]
[313438657,1707347477527,-1538.22,0.00049589,61]
[313438658,1707347477536,-2000.0,0.00049589,120]
[313438659,1707347477545,-912.48,0.00049589,61]
[313438660,1707347477555,-2474.47,0.00049589,61]
[313438661,1707347477564,-500.0,0.00049589,61]
[313438662,1707347477574,-1040.51,0.00049589,61]
[313438663,1707347477583,-6163.74,0.00049589,61]
[313438664,1707347477592,-500.0,0.00049589,61]
[313438665,1707347477602,-500.0,0.00049589,61]
[313438666,1707347477612,-3096.57,0.00049589,61]
[313438667,1707347477622,-315.68783309,0.00049589,61]
[313438668,1707347477632,-500.0,0.00049589,61]
[313438669,1707347477641,-500.0,0.00049589,61]
[313438670,1707347477651,-500.0,0.00049589,61]
[313438671,1707347477661,-500.0,0.00049589,61]
[313438672,1707347477671,-3262.84,0.00049589,61]
[313438673,1707347477680,-500.0,0.00049589,61]
[313438674,1707347477690,-500.0,0.00049589,61]
[313438675,1707347477699,-500.0,0.00049589,61]
[313438676,1707347477709,-4620.53,0.00049589,61]
[313438677,1707347477719,-605.03,0.00049589,61]
[313438678,1707347477728,-556.98303528,0.00049589,61]
[313438679,1707347477738,-2571.02,0.00049589,61]
[313438680,1707347477747,-5162.98,0.00049589,61]
[313438681,1707347477756,-519.8646827,0.00049589,61]
[313438682,1707347477766,-777.37,0.00049589,61]
[313438683,1707347477775,-500.0,0.00049589,61]
[313438684,1707347477785,-43223.85,0.00049589,61]
[313438685,1707347477795,-500.0,0.00049589,61]
[313438686,1707347477805,-500.0,0.00049589,61]
[313438687,1707347477814,-500.0,0.00049589,61]
[313438688,1707347477823,-500.0,0.00049589,61]
[313438689,1707347477833,-500.0,0.00049589,61]
[313438690,1707347477842,-1341.56,0.00049589,61]
[313438691,1707347477852,-500.0,0.00049589,120]
[313438692,1707347477862,-500.0,0.00049589,61]
[313438693,1707347477871,-2451.8,0.00049589,61]
[313438694,1707347477880,-500.0,0.00049589,61]
[313438695,1707347477890,-2551.1,0.00049589,61]
[313438696,1707347477899,-705.67,0.00049589,61]
[313438697,1707347477908,-500.0,0.00049589,61]
[313438698,1707347477917,-500.0,0.00049589,61]
[313438699,1707347477927,-897.07,0.00049589,61]
[313438700,1707347477936,-642.66,0.00049589,61]
[313438701,1707347477945,-500.0,0.00049589,61]
[313438702,1707347477954,-500.0,0.00049589,61]
[313438703,1707347477964,-3166.75,0.00049589,61]
[313438704,1707347477973,-500.0,0.00049589,61]
[313438705,1707347477982,-892.29,0.00049589,61]
[313438706,1707347477992,-1994.74,0.00049589,61]
[313438707,1707347478002,-500.0,0.00049589,61]
[313438708,1707347478013,-2396.09,0.00049589,61]
[313438709,1707347478023,-1037.14,0.00049589,61]
[313438710,1707347478033,-680.03,0.00049589,61]
[313438711,1707347478043,-25185.74,0.00049589,61]
[313438712,1707347478052,-2909.01,0.00049589,61]
[313438713,1707347478061,-500.0,0.00049589,61]
[313438714,1707347478071,-500.0,0.00049589,61]
[313438715,1707347478081,-535.88,0.00049589,61]
[313438716,1707347478092,-3203.86,0.00049589,61]
[313438717,1707347478102,-576.33529484,0.00049589,61]
[313438718,1707347478112,-500.0,0.00049589,61]
[313438719,1707347478121,-2960.25,0.00049589,61]
[313438720,1707347478131,-500.0,0.00049589,61]
[313438721,1707347478140,-1727.02,0.00049589,61]
[313438722,1707347478150,-500.0,0.00049589,61]
[313438723,1707347478160,-6381.13,0.00049589,61]
[313438724,1707347478169,-3183.44,0.00049589,61]
[313438725,1707347478179,-693.07,0.00049589,61]
[313438726,1707347478189,-500.0,0.00049589,61]
[313438727,1707347478198,-500.0,0.00049589,61]
[313438728,1707347478208,-500.0,0.00049589,61]
[313438729,1707347478218,-804.8,0.00049589,61]
[313438730,1707347478227,-500.0,0.00049589,61]
[313438731,1707347478237,-1176.69,0.00049589,61]
[313438732,1707347478247,-3540.6,0.00049589,61]
[313438733,1707347478256,-500.0,0.00049589,61]
[313438734,1707347478266,-500.0,0.00049589,61]
[313438735,1707347478275,-508.68,0.00049589,61]
[313438736,1707347478285,-500.0,0.00049589,61]
[313438737,1707347478295,-500.0,0.00049589,61]
[313438738,1707347478304,-500.0,0.00049589,61]
[313438739,1707347478314,-500.0,0.00049589,61]
[313438740,1707347478323,-3372.12,0.00049589,61]
[313438741,1707347478333,-711.04,0.00049589,61]
[313438742,1707347478342,-4463.56,0.00049589,61]
[313438743,1707347478352,-500.0,0.00049589,61]
[313438744,1707347478362,-883.47,0.00049589,61]
[313438745,1707347478371,-500.0,0.00049589,61]
[313438746,1707347478381,-575.16,0.00049589,61]
[313438747,1707347478390,-791.41,0.00049589,61]
[313438748,1707347478399,-500.0,0.00049589,61]
[313438749,1707347478408,-500.0,0.00049589,61]
[313438750,1707347478418,-500.0,0.00049589,61]
[313438751,1707347478427,-750.3,0.00049589,61]
[313438752,1707347478436,-4830.04,0.00049589,61]
[313438753,1707347478446,-1911.94,0.00049589,61]
[313438754,1707347478455,-4833.65,0.00049589,61]
[313438755,1707347478464,-500.0,0.00049589,61]
[313438756,1707347478475,-1788.65,0.00049589,61]
[313438757,1707347478484,-15088.23,0.00049589,61]
[313438758,1707347478493,-688.92,0.00049589,61]
[313438759,1707347478503,-500.0,0.00049589,61]
[313438760,1707347478512,-606.81000781,0.00049589,61]
[313438761,1707347478522,-648.02,0.00049589,61]
[313438762,1707347478532,-500.0,0.00049589,5]
[313438763,1707347478541,-500.0,0.00049589,61]
[313438764,1707347478550,-3910.43,0.00049589,61]
[313438765,1707347478560,-500.0,0.00049589,61]
[313438766,1707347478569,-999.05,0.00049589,61]
[313438767,1707347478579,-500.0,0.00049589,61]
[313438768,1707347478588,-1614.89,0.00049589,61]
[313438769,1707347478598,-1621.88,0.00049589,61]
[313438770,1707347478608,-500.0,0.00049589,61]
[313438771,1707347478617,-500.0,0.00049589,61]